[Event "SWE-ch Class 1 2019"]
[Site "Eskilstuna"]
[Date "2019.07.11"]
[Round "4.6"]
[White "Muganlinskij, Hussein"]
[Black "Thollin, Robert"]
[Result "1-0"]
[ECO "A90"]
[WhiteElo "2022"]
[BlackElo "1983"]
[Annotator "NA"]
[PlyCount "125"]
[EventDate "2019.07.06"]
[EventType "tourn"]
[EventCountry "SWE"]
[SourceTitle "playchess.com"]
[Source "ChessBase"]
[SourceQuality "1"]
[TimeControl "40/5400+30:1800+30"]

1. d4 {[%emt 0:00:00]} e6 {[%emt 0:03:27]} 2. Nf3 {[%emt 0:00:00]} f5 {[%emt 0:00:06]} 3. g3 {[%emt 0:00:00]} Nf6 {[%emt 0:00:09]} 4. Bg2 {[%emt 0:00:10]} d5 {[%emt 0:02:14]} 5. O-O {[%emt 0:02:34]} Bd6 {[%emt 0:00:13]} 6. b3 {[%emt 0:02:34]} Qe7 {[%emt 0:00:30]} 7. c4 {[%emt 0:01:24]} c6 {[%emt 0:00:52]} 8. Bf4 {[%emt 0:00:35]} Bxf4 {[%emt 0:00:09]} 9. gxf4 {[%emt 0:00:05]} O-O {[%emt 0:00:06]} 10. Ne5 {[%emt 0:02:25]} Kh8 {[%emt 0:03:05]} 11. Nd2 {[%emt 0:01:52]} Rg8 {[%emt 0:03:57]} 12. Ndf3 {[%emt 0:02:53]} Nbd7 {[%emt 0:11:56]} 13. e3 {[%emt 0:02:40]} Ne4 {[%emt 0:07:48]} 14. Nxd7 {[%emt 0:03:02]} Bxd7 {[%emt 0:00:03]} 15. Ne5 {[%emt 0:01:00]} Nf6 {[%emt 0:06:54]} 16. Kh1 {[%emt 0:11:30]} g5 {[%emt 0:12:16]} 17. fxg5 {[%emt 0:00:38]} Rxg5 {[%emt 0:00:02]} 18. f4 {[%emt 0:01:06]} Rg7 {[%emt 0:03:26]} 19. Bf3 {[%emt 0:01:14]} Rag8 {[%emt 0:01:02]} 20. Qe2 {[%emt 0:00:25]} Be8 {[%emt 0:02:47]} 21. Rg1 {[%emt 0:01:32]} Nd7 {[%emt 0:03:15]} 22. Nxd7 {[%emt 0:04:28]} Bxd7 {[%emt 0:00:53]} 23. Rxg7 {[%emt 0:00:48]} Qxg7 {[%emt 0:00:04]} 24. Qf2 {[%emt 0:00:12]} Qf6 {[%emt 0:06:10]} 25. Rg1 {[%emt 0:00:19]} Rxg1+ {[%emt 0:00:54]} 26. Qxg1 {[%emt 0:00:11]} h6 {[%emt 0:00:25]} 27. Qe1 {[%emt 0:01:53]} b6 {[%emt 0:10:44]} 28. Qb4 {[%emt 0:01:48]} Kh7 {[%emt 0:01:39]} 29. Qd6 {[%emt 0:00:39]} Be8 {[%emt 0:00:11]} 30. Qc7+ {[%emt 0:00:27]} Qf7 {[%emt 0:00:03]} 31. Qb8 {[%emt 0:17:43]} Qd7 {[%emt 0:02:20]} 32. a4 {[%emt 0:00:36]} Bf7 {[%emt 0:02:41]} 33. Qe5 {[%emt 0:01:36]} Be8 {[%emt 0:02:17]} 34. cxd5 {[%emt 0:01:04]} exd5 {[%emt 0:06:23]} 35. b4 {[%emt 0:02:22]} Bf7 {[%emt 0:02:29]} 36. a5 {[%emt 0:07:18]} bxa5 {[%emt 0:00:19]} 37. bxa5 {[%emt 0:00:10]} Qb7 {[%emt 0:03:44]} 38. Qxf5+ {[%emt 0:08:48]} Bg6 {[%emt 0:00:01]} 39. Qe5 {[%emt 0:00:16]} Qb1+ {[%emt 0:00:50]} 40. Kg2 {[%emt 0:00:08]} Qa2+ {[%emt 0:01:34]} 41. Kg3 {[%emt 0:34:33]} Qxa5 {[%emt 0:30:47]} 42. f5 {[%emt 0:10:21]} Bf7 {[%emt 0:00:00]} 43. Qe7 {[%emt 0:00:00]} Kg8 {[%emt 0:00:00]} 44. Kf4 {[%emt 0:00:00]} Qd2 {[%emt 0:00:00]} 45. Qh4 {[%emt 0:00:00]} Kh7 {[%emt 0:00:00]} 46. f6 {[%emt 0:00:00]} Qd3 {[%emt 0:00:00]} 47. Qg4 {[%emt 0:00:00]} Qg6 {[%emt 0:00:00]} 48. Ke5 {[%emt 0:00:00]} a5 {[%emt 0:00:00]} 49. Bd1 {[%emt 0:00:00]} Qxg4 {[%emt 0:00:00]} 50. Bxg4 {[%emt 0:00:00]} a4 {[%emt 0:00:00]} 51. Bf5+ {[%emt 0:00:00]} Kg8 {[%emt 0:00:00]} 52. Kd6 {[%emt 0:00:00]} a3 {[%emt 0:00:00]} 53. Bb1 {[%emt 0:00:00]} Be8 {[%emt 0:00:00]} 54. Ke7 {[%emt 0:00:00]} Bh5 {[%emt 0:00:00]} 55. Ba2 {[%emt 0:00:38]} Bg6 {[%emt 0:00:00]} 56. e4 {[%emt 0:01:12]} Bf7 {[%emt 0:01:05]} 57. e5 {[%emt 0:00:16]} c5 {[%emt 0:02:08]} 58. dxc5 {[%emt 0:00:24]} d4 {[%emt 0:00:12]} 59. Bxf7+ {[%emt 0:00:10]} Kh7 {[%emt 0:00:07]} 60. Ba2 {[%emt 0:01:14]} d3 {[%emt 0:01:23]} 61. f7 {[%emt 0:00:22]} d2 {[%emt 0:00:07]} 62. f8=Q {[%emt 0:00:13]} d1=Q {[%emt 0:00:10]} 63. Qg8# {[%emt 0:00:56]} 1-0

[Event "SWE-ch Class 1 2019"]
[Site "Eskilstuna"]
[Date "2019.07.11"]
[Round "4.7"]
[White "Akerlund, Fredrik"]
[Black "Eriksson, Joel"]
[Result "1/2-1/2"]
[ECO "C02"]
[WhiteElo "1815"]
[BlackElo "1998"]
[Annotator "NA"]
[PlyCount "33"]
[EventDate "2019.07.06"]
[EventType "tourn"]
[EventCountry "SWE"]
[SourceTitle "playchess.com"]
[Source "ChessBase"]
[SourceQuality "1"]
[TimeControl "40/5400+30:1800+30"]

1. e4 {[%emt 0:00:00]} e6 {[%emt 0:00:00]} 2. d4 {[%emt 0:00:17]} d5 {[%emt 0:00:00]} 3. e5 {[%emt 0:02:09]} c5 {[%emt 0:00:00]} 4. c3 {[%emt 0:00:03]} Qb6 {[%emt 0:00:00]} 5. Nf3 {[%emt 0:00:09]} Nc6 {[%emt 0:00:00]} 6. Bd3 {[%emt 0:00:13]} cxd4 {[%emt 0:00:08]} 7. cxd4 {[%emt 0:00:54]} Bd7 {[%emt 0:00:07]} 8. O-O {[%emt 0:10:50]} Nxd4 {[%emt 0:00:22]} 9. Nxd4 {[%emt 0:00:06]} Qxd4 {[%emt 0:00:08]} 10. Nc3 {[%emt 0:00:26]} a6 {[%emt 0:00:06]} 11. Re1 {[%emt 0:06:36]} Ne7 {[%emt 0:01:46]} 12. Be3 {[%emt 0:12:01]} Qb4 {[%emt 0:17:35]} 13. Bd2 {[%emt 0:14:41]} Qb6 {[%emt 0:02:47]} 14. Na4 {[%emt 0:02:53]} Bxa4 {[%emt 0:05:52]} 15. Qxa4+ {[%emt 0:00:02]} Nc6 {[%emt 0:00:30]} 16. Rac1 {[%emt 0:05:55]} Be7 {[%emt 0:09:45]} 17. Qg4 {[%emt 0:08:09]} 1/2-1/2

[Event "SWE-ch Class 1 2019"]
[Site "Eskilstuna"]
[Date "2019.07.11"]
[Round "4.9"]
[White "Willinger, Tim"]
[Black "Karlsson, Roger"]
[Result "1-0"]
[ECO "D35"]
[WhiteElo "2053"]
[BlackElo "1915"]
[Annotator "NA"]
[PlyCount "64"]
[EventDate "2019.07.06"]
[EventType "tourn"]
[EventCountry "SWE"]
[SourceTitle "playchess.com"]
[Source "ChessBase"]
[SourceQuality "1"]
[TimeControl "40/5400+30:1800+30"]

1. d4 {[%emt 0:04:59]} Nf6 {[%emt 0:00:00]} 2. c4 {[%emt 0:00:15]} e6 {[%emt 0:00:03]} 3. Nc3 {[%emt 0:00:06]} d5 {[%emt 0:00:06]} 4. cxd5 {[%emt 0:00:06]} exd5 {[%emt 0:00:10]} 5. Bg5 {[%emt 0:00:06]} c6 {[%emt 0:00:37]} 6. e3 {[%emt 0:00:06]} Nbd7 {[%emt 0:04:17]} 7. Bd3 {[%emt 0:00:12]} Be7 {[%emt 0:02:44]} 8. Nge2 {[%emt 0:00:20]} Ne4 {[%emt 0:03:21]} 9. Bxe7 {[%emt 0:00:49]} Qxe7 {[%emt 0:00:12]} 10. Bxe4 {[%emt 0:03:25]} dxe4 {[%emt 0:01:51]} 11. Ng3 {[%emt 0:02:17]} O-O {[%emt 0:02:46]} 12. Ngxe4 {[%emt 0:06:28]} f5 {[%emt 0:06:32]} 13. Nd2 {[%emt 0:00:55]} f4 {[%emt 0:13:15]} 14. e4 {[%emt 0:06:48]} c5 {[%emt 0:05:02]} 15. d5 {[%emt 0:05:49]} Ne5 {[%emt 0:03:38]} 16. Qe2 {[%emt 0:07:00]} b5 {[%emt 0:06:37]} 17. O-O-O {[%emt 0:14:34]} b4 {[%emt 0:08:25]} 18. d6 {[%emt 0:00:55]} Qg5 {[%emt 0:14:09]} 19. Nd5 {[%emt 0:04:32]} f3 {[%emt 0:02:15]} 20. gxf3 {[%emt 0:04:26]} Nxf3 {[%emt 0:04:24]} 21. Ne7+ {[%emt 0:00:47]} Kh8 {[%emt 0:00:40]} 22. Nxc8 {[%emt 0:00:19]} Raxc8 {[%emt 0:00:16]} 23. Kb1 {[%emt 0:02:08]} Nd4 {[%emt 0:01:14]} 24. Qe3 {[%emt 0:03:12]} Qf6 {[%emt 0:01:59]} 25. Nc4 {[%emt 0:03:09]} Qe6 {[%emt 0:03:23]} 26. Rc1 {[%emt 0:10:31]} Rf3 {[%emt 0:02:21]} 27. d7 {[%emt 0:07:20]} Rcf8 {[%emt 0:06:01]} 28. Qg5 {[%emt 0:01:37]} Qxe4+ {[%emt 0:01:50]} 29. Ka1 {[%emt 0:00:12]} Ne6 {[%emt 0:01:56]} 30. Qe7 {[%emt 0:02:32]} Rxf2 {[%emt 0:01:17]} 31. Rhd1 {[%emt 0:01:27]} R2f7 {[%emt 0:03:34]} 32. Qxf7 {[%emt 0:00:36]} Nd4 {[%emt 0:00:00]} 1-0

[Event "SWE-ch Class 1 2019"]
[Site "Eskilstuna"]
[Date "2019.07.11"]
[Round "4.10"]
[White "Grundel, Sam"]
[Black "Johansson, Roland"]
[Result "1/2-1/2"]
[ECO "B35"]
[WhiteElo "2069"]
[BlackElo "2002"]
[Annotator "NA"]
[PlyCount "52"]
[EventDate "2019.07.06"]
[EventType "tourn"]
[EventCountry "SWE"]
[SourceTitle "playchess.com"]
[Source "ChessBase"]
[SourceQuality "1"]
[TimeControl "40/5400+30:1800+30"]

1. e4 {[%emt 0:00:00]} c5 {[%emt 0:00:00]} 2. Nf3 {[%emt 0:00:00]} Nc6 {[%emt 0:00:00]} 3. Nc3 {[%emt 0:00:10]} g6 {[%emt 0:00:00]} 4. d4 {[%emt 0:00:13]} cxd4 {[%emt 0:00:00]} 5. Nxd4 {[%emt 0:00:05]} Bg7 {[%emt 0:00:03]} 6. Be3 {[%emt 0:00:14]} Nf6 {[%emt 0:00:05]} 7. Bc4 {[%emt 0:00:13]} O-O {[%emt 0:10:24]} 8. Bb3 {[%emt 0:00:53]} Ng4 {[%emt 0:10:08]} 9. Qxg4 {[%emt 0:04:51]} Nxd4 {[%emt 0:00:20]} 10. Qd1 {[%emt 0:00:20]} Nxb3 {[%emt 0:00:13]} 11. axb3 {[%emt 0:00:10]} Bxc3+ {[%emt 0:11:02]} 12. bxc3 {[%emt 0:00:29]} Qc7 {[%emt 0:00:10]} 13. Qd3 {[%emt 0:03:02]} d6 {[%emt 0:03:38]} 14. O-O {[%emt 0:00:46]} a6 {[%emt 0:00:12]} 15. Rad1 {[%emt 0:05:01]} Be6 {[%emt 0:04:39]} 16. f4 {[%emt 0:16:53]} f5 {[%emt 0:03:54]} 17. Rf2 {[%emt 0:01:50]} b5 {[%emt 0:03:42]} 18. Bd4 {[%emt 0:06:46]} Rae8 {[%emt 0:14:12]} 19. Qh3 {[%emt 0:09:57]} Bc8 {[%emt 0:05:58]} 20. exf5 {[%emt 0:02:37]} Bxf5 {[%emt 0:02:20]} 21. g4 {[%emt 0:00:55]} Bc8 {[%emt 0:01:42]} 22. f5 {[%emt 0:00:37]} e5 {[%emt 0:04:03]} 23. fxe6 {[%emt 0:04:03]} Rxf2 {[%emt 0:00:46]} 24. Kxf2 {[%emt 0:09:48]} Rxe6 {[%emt 0:01:50]} 25. Rf1 {[%emt 0:01:13]} Re4 {[%emt 0:02:44]} 26. Qf3 {[%emt 0:03:14]} Qf7 {[%emt 0:05:56]} 1/2-1/2

[Event "SWE-ch Class 1 2019"]
[Site "Eskilstuna"]
[Date "2019.07.12"]
[Round "5.1"]
[White "Lyngsjo, Hakan"]
[Black "Bernhard, Jonathan"]
[Result "1/2-1/2"]
[ECO "C54"]
[WhiteElo "2029"]
[BlackElo "1917"]
[Annotator "NA"]
[PlyCount "29"]
[EventDate "2019.07.06"]
[EventType "tourn"]
[EventCountry "SWE"]
[SourceTitle "playchess.com"]
[Source "ChessBase"]
[SourceQuality "1"]
[TimeControl "40/5400+30:1800+30"]

1. e4 {[%emt 0:00:00]} Nc6 {[%emt 0:00:00]} 2. Nf3 {[%emt 0:00:00]} e5 {[%emt 0:00:00]} 3. Bc4 {[%emt 0:00:02]} Bc5 {[%emt 0:00:00]} 4. c3 {[%emt 0:00:07]} Nf6 {[%emt 0:00:00]} 5. d3 {[%emt 0:00:04]} d6 {[%emt 0:00:25]} 6. Bb3 {[%emt 0:00:17]} a5 {[%emt 0:00:39]} 7. Nbd2 {[%emt 0:08:45]} O-O {[%emt 0:01:32]} 8. Nf1 {[%emt 0:05:39]} Ne7 {[%emt 0:02:39]} 9. Ng3 {[%emt 0:08:23]} Ba7 {[%emt 0:01:32]} 10. Bg5 {[%emt 0:15:12]} Ng4 {[%emt 0:10:18]} 11. d4 {[%emt 0:02:39]} h6 {[%emt 0:00:54]} 12. Bc1 {[%emt 0:05:27]} Ng6 {[%emt 0:01:59]} 13. h3 {[%emt 0:02:01]} Nf6 {[%emt 0:00:02]} 14. O-O {[%emt 0:00:12]} Re8 {[%emt 0:03:53]} 15. Re1 {[%emt 0:02:41]} 1/2-1/2

[Event "SWE-ch Class 1 2019"]
[Site "Eskilstuna"]
[Date "2019.07.12"]
[Round "5.2"]
[White "Nordstrom, Felix"]
[Black "Halvarsson, Peter"]
[Result "0-1"]
[ECO "B38"]
[WhiteElo "2064"]
[BlackElo "1903"]
[Annotator "NA"]
[PlyCount "102"]
[EventDate "2019.07.06"]
[EventType "tourn"]
[EventCountry "SWE"]
[SourceTitle "playchess.com"]
[Source "ChessBase"]
[SourceQuality "1"]
[TimeControl "40/5400+30:1800+30"]

1. e4 {[%emt 0:00:00]} c5 {[%emt 0:00:00]} 2. Nf3 {[%emt 0:00:24]} g6 {[%emt 0:00:00]} 3. d4 {[%emt 0:00:28]} cxd4 4. Nxd4 {[%emt 0:00:06]} Bg7 {[%emt 0:00:01]} 5. c4 {[%emt 0:01:13]} Nc6 {[%emt 0:00:18]} 6. Be3 {[%emt 0:00:37]} Nf6 {[%emt 0:00:44]} 7. Nc3 {[%emt 0:00:26]} d6 {[%emt 0:01:16]} 8. Be2 {[%emt 0:02:59]} Bd7 {[%emt 0:01:50]} 9. O-O {[%emt 0:02:03]} O-O {[%emt 0:00:15]} 10. Qd2 {[%emt 0:01:02]} Rc8 {[%emt 0:05:18]} 11. f3 {[%emt 0:04:44]} Re8 {[%emt 0:04:15]} 12. Rfd1 {[%emt 0:08:10]} a5 {[%emt 0:08:04]} 13. Ndb5 {[%emt 0:06:46]} Ne5 {[%emt 0:15:54]} 14. b3 {[%emt 0:00:54]} Bc6 {[%emt 0:06:08]} 15. Rac1 {[%emt 0:01:03]} Ned7 {[%emt 0:14:14]} 16. Qe1 {[%emt 0:02:00]} Bxb5 {[%emt 0:10:56]} 17. Nxb5 {[%emt 0:00:29]} a4 {[%emt 0:04:25]} 18. b4 {[%emt 0:12:07]} Ra8 {[%emt 0:02:01]} 19. a3 {[%emt 0:01:38]} Qc8 {[%emt 0:03:52]} 20. Rd2 {[%emt 0:12:36]} h5 {[%emt 0:02:08]} 21. Qd1 {[%emt 0:03:37]} b6 {[%emt 0:02:36]} 22. Nc3 {[%emt 0:06:22]} Kh7 {[%emt 0:04:12]} 23. Ra2 {[%emt 0:06:44]} h4 {[%emt 0:01:48]} 24. h3 {[%emt 0:02:53]} Nh5 {[%emt 0:00:19]} 25. Nxa4 {[%emt 0:02:59]} Qb7 {[%emt 0:05:51]} 26. Nc3 {[%emt 0:01:06]} Be5 {[%emt 0:00:23]} 27. Qd2 {[%emt 0:00:47]} Bg3 {[%emt 0:00:35]} 28. f4 {[%emt 0:02:57]} Nhf6 {[%emt 0:01:46]} 29. Bf3 {[%emt 0:01:07]} e5 {[%emt 0:00:01]} 30. f5 {[%emt 0:05:08]} gxf5 {[%emt 0:00:38]} 31. exf5 {[%emt 0:00:09]} e4 {[%emt 0:00:01]} 32. Be2 {[%emt 0:00:55]} Rg8 {[%emt 0:02:49]} 33. Nb5 {[%emt 0:02:05]} Qc6 {[%emt 0:00:48]} 34. Rd1 {[%emt 0:01:15]} Ne5 {[%emt 0:00:27]} 35. Nd4 {[%emt 0:02:00]} Qb7 {[%emt 0:00:01]} 36. Kh1 {[%emt 0:02:11]} Rac8 {[%emt 0:00:29]} 37. Rc2 {[%emt 0:00:33]} Qa8 {[%emt 0:00:32]} 38. Nb5 {[%emt 0:01:08]} Rcd8 {[%emt 0:02:04]} 39. Bf1 {[%emt 0:02:59]} Qa4 {[%emt 0:01:51]} 40. Rdc1 {[%emt 0:01:48]} d5 {[%emt 0:00:37]} 41. Nc3 {[%emt 0:04:14]} Qd7 {[%emt 0:06:32]} 42. Nxd5 {[%emt 0:04:12]} Qxf5 {[%emt 0:13:14]} 43. Bxb6 {[%emt 0:02:57]} Rd7 {[%emt 0:04:11]} 44. Rd1 {[%emt 0:11:31]} Nh5 {[%emt 0:01:41]} 45. Be3 {[%emt 0:03:03]} f6 {[%emt 0:02:28]} 46. Qc3 {[%emt 0:01:24]} Rdg7 {[%emt 0:00:41]} 47. b5 {[%emt 0:01:38]} Nf3 {[%emt 0:03:17]} 48. b6 {[%emt 0:03:09]} Be5 {[%emt 0:00:13]} 49. Bf2 {[%emt 0:01:42]} Qxh3+ {[%emt 0:00:37]} 50. gxh3 {[%emt 0:00:15]} Rg1+ {[%emt 0:00:04]} 51. Bxg1 {[%emt 0:00:12]} Rxg1# {[%emt 0:00:03]} 0-1

[Event "SWE-ch Class 1 2019"]
[Site "Eskilstuna"]
[Date "2019.07.12"]
[Round "5.3"]
[White "Attefall, Fredrik"]
[Black "Kardell, Mathias"]
[Result "1/2-1/2"]
[ECO "A25"]
[WhiteElo "2077"]
[BlackElo "2064"]
[Annotator "NA"]
[PlyCount "29"]
[EventDate "2019.07.06"]
[EventType "tourn"]
[EventCountry "SWE"]
[SourceTitle "playchess.com"]
[Source "ChessBase"]
[SourceQuality "1"]
[TimeControl "40/5400+30:1800+30"]

1. c4 {[%emt 0:00:00]} e5 {[%emt 0:00:00]} 2. Nc3 {[%emt 0:00:00]} Nc6 {[%emt 0:00:26]} 3. g3 {[%emt 0:00:23]} d6 {[%emt 0:02:32]} 4. Bg2 {[%emt 0:00:14]} Be6 {[%emt 0:02:44]} 5. b3 {[%emt 0:04:09]} f5 {[%emt 0:05:37]} 6. d4 {[%emt 0:08:33]} Nxd4 {[%emt 0:05:48]} 7. Bxb7 {[%emt 0:00:40]} Rb8 {[%emt 0:03:29]} 8. Bg2 {[%emt 0:00:39]} Bd7 {[%emt 0:10:52]} 9. e3 {[%emt 0:02:49]} Ne6 {[%emt 0:02:25]} 10. Nge2 {[%emt 0:01:15]} Nf6 {[%emt 0:01:58]} 11. O-O {[%emt 0:03:09]} g6 {[%emt 0:03:08]} 12. Qc2 {[%emt 0:05:14]} Bg7 {[%emt 0:06:45]} 13. Bb2 {[%emt 0:10:04]} O-O {[%emt 0:04:41]} 14. Nd5 {[%emt 0:03:22]} Ng4 {[%emt 0:07:35]} 15. Rad1 {[%emt 0:05:18]} 1/2-1/2

[Event "SWE-ch Class 1 2019"]
[Site "Eskilstuna"]
[Date "2019.07.12"]
[Round "5.4"]
[White "Forsberg, Andre"]
[Black "Bjorkman, Filip"]
[Result "0-1"]
[ECO "B33"]
[WhiteElo "1982"]
[BlackElo "1956"]
[Annotator "NA"]
[PlyCount "58"]
[EventDate "2019.07.06"]
[EventType "tourn"]
[EventCountry "SWE"]
[SourceTitle "playchess.com"]
[Source "ChessBase"]
[SourceQuality "1"]
[TimeControl "40/5400+30:1800+30"]

1. e4 {[%emt 0:00:00]} c5 {[%emt 0:00:00]} 2. Nf3 {[%emt 0:00:00]} Nc6 {[%emt 0:00:05]} 3. d4 {[%emt 0:00:00]} cxd4 {[%emt 0:00:10]} 4. Nxd4 {[%emt 0:00:06]} Nf6 {[%emt 0:00:04]} 5. Nc3 {[%emt 0:01:12]} e5 {[%emt 0:00:09]} 6. Ndb5 {[%emt 0:00:10]} d6 {[%emt 0:00:14]} 7. Bg5 {[%emt 0:00:47]} a6 {[%emt 0:00:07]} 8. Na3 {[%emt 0:00:16]} b5 {[%emt 0:00:06]} 9. Nd5 {[%emt 0:00:10]} Be7 {[%emt 0:00:09]} 10. Bxf6 {[%emt 0:00:19]} Bxf6 {[%emt 0:00:22]} 11. c4 {[%emt 0:00:29]} b4 {[%emt 0:04:49]} 12. Nc2 {[%emt 0:00:09]} O-O {[%emt 0:01:48]} 13. Ncxb4 {[%emt 0:01:09]} Nxb4 {[%emt 0:00:26]} 14. Nxb4 {[%emt 0:00:24]} Qb6 {[%emt 0:00:17]} 15. Nd5 {[%emt 0:10:18]} Qxb2 {[%emt 0:01:08]} 16. Bd3 {[%emt 0:06:56]} Be6 {[%emt 0:03:16]} 17. O-O {[%emt 0:01:53]} Bxd5 {[%emt 0:00:36]} 18. cxd5 {[%emt 0:00:17]} Bd8 {[%emt 0:00:32]} 19. f4 {[%emt 0:21:21]} exf4 {[%emt 0:05:43]} 20. Rxf4 {[%emt 0:00:25]} Bf6 {[%emt 0:01:09]} 21. Rb1 {[%emt 0:02:40]} Qd4+ {[%emt 0:00:07]} 22. Kh1 {[%emt 0:02:55]} Rab8 {[%emt 0:00:50]} 23. Bxa6 {[%emt 0:11:01]} Qe5 {[%emt 0:02:06]} 24. Rf3 {[%emt 0:02:08]} Qxe4 {[%emt 0:01:01]} 25. Bb7 {[%emt 0:12:32]} Rfc8 {[%emt 0:04:56]} 26. Qd3 {[%emt 0:12:49]} Qxd3 {[%emt 0:03:48]} 27. Rxd3 {[%emt 0:00:06]} Rxb7 {[%emt 0:00:05]} 28. Re1 {[%emt 0:02:25]} Ra7 {[%emt 0:01:06]} 29. Rde3 {[%emt 0:00:14]} Be5 {[%emt 0:00:08]} 0-1

[Event "SWE-ch Class 1 2019"]
[Site "Eskilstuna"]
[Date "2019.07.12"]
[Round "5.5"]
[White "Muganlinskij, Hussein"]
[Black "Arvidsson, Jonas"]
[Result "1-0"]
[ECO "D03"]
[WhiteElo "2022"]
[BlackElo "1965"]
[Annotator "NA"]
[PlyCount "87"]
[EventDate "2019.07.06"]
[EventType "tourn"]
[EventCountry "SWE"]
[SourceTitle "playchess.com"]
[Source "ChessBase"]
[SourceQuality "1"]
[TimeControl "40/5400+30:1800+30"]

1. d4 {[%emt 0:00:00]} Nf6 {[%emt 0:00:00]} 2. Bg5 {[%emt 0:00:00]} e6 {[%emt 0:03:44]} 3. Nf3 {[%emt 0:00:08]} d5 {[%emt 0:01:05]} 4. Nbd2 {[%emt 0:00:31]} Be7 {[%emt 0:02:54]} 5. e3 {[%emt 0:00:23]} O-O {[%emt 0:01:23]} 6. Bd3 {[%emt 0:00:11]} c5 {[%emt 0:03:52]} 7. c3 {[%emt 0:00:22]} Nbd7 {[%emt 0:05:30]} 8. O-O {[%emt 0:00:27]} a6 {[%emt 0:02:54]} 9. Rc1 {[%emt 0:06:07]} b6 {[%emt 0:04:45]} 10. Qa4 {[%emt 0:00:14]} Bb7 {[%emt 0:02:27]} 11. Ne5 {[%emt 0:00:54]} b5 {[%emt 0:07:57]} 12. Qd1 {[%emt 0:00:58]} h6 {[%emt 0:02:55]} 13. Bh4 {[%emt 0:00:50]} Ne4 {[%emt 0:03:39]} 14. Bxe7 {[%emt 0:05:54]} Qxe7 {[%emt 0:00:10]} 15. f4 {[%emt 0:00:14]} Ndf6 {[%emt 0:07:00]} 16. Bxe4 {[%emt 0:10:55]} Nxe4 {[%emt 0:06:36]} 17. Nd3 {[%emt 0:05:00]} cxd4 {[%emt 0:05:33]} 18. cxd4 {[%emt 0:01:30]} Rfc8 {[%emt 0:01:37]} 19. Nxe4 {[%emt 0:01:41]} dxe4 {[%emt 0:00:08]} 20. Rxc8+ {[%emt 0:05:21]} Rxc8 {[%emt 0:00:43]} 21. Nc5 {[%emt 0:00:06]} Bd5 {[%emt 0:04:27]} 22. a3 {[%emt 0:09:43]} a5 {[%emt 0:06:55]} 23. Qh5 {[%emt 0:04:14]} f5 {[%emt 0:02:55]} 24. g4 {[%emt 0:08:25]} Qf7 {[%emt 0:02:47]} 25. Qxf7+ {[%emt 0:01:06]} Kxf7 {[%emt 0:00:01]} 26. h3 {[%emt 0:01:24]} a4 {[%emt 0:01:32]} 27. Rc1 {[%emt 0:01:29]} g6 {[%emt 0:01:11]} 28. Rc3 {[%emt 0:00:36]} g5 {[%emt 0:02:12]} 29. Nxe4 {[%emt 0:10:50]} Rxc3 {[%emt 0:00:55]} 30. Nxc3 {[%emt 0:00:19]} Bc4 {[%emt 0:00:07]} 31. Kf2 {[%emt 0:02:25]} Kf6 {[%emt 0:01:56]} 32. Kg3 {[%emt 0:02:38]} Kg6 {[%emt 0:03:15]} 33. e4 {[%emt 0:01:08]} Bf1 {[%emt 0:01:12]} 34. h4 {[%emt 0:01:54]} fxg4 {[%emt 0:01:25]} 35. hxg5 {[%emt 0:02:09]} h5 {[%emt 0:05:02]} 36. Kh4 {[%emt 0:00:33]} Bc4 {[%emt 0:00:28]} 37. Nd1 {[%emt 0:06:14]} Bd3 {[%emt 0:01:31]} 38. Nc3 {[%emt 0:00:31]} Bc4 {[%emt 0:00:16]} 39. d5 {[%emt 0:00:42]} exd5 {[%emt 0:00:23]} 40. f5+ {[%emt 0:00:05]} Kf7 {[%emt 0:01:59]} 41. Nxd5 {[%emt 0:31:39]} Bd3 {[%emt 0:30:47]} 42. Nf6 {[%emt 0:01:40]} Bc2 {[%emt 0:00:35]} 43. Kg3 {[%emt 0:00:50]} Bd3 {[%emt 0:00:27]} 44. Kf4 {[%emt 0:00:11] Ke8} 1-0